[Event "Charlotte Super Swiss"]
[Site "Charlotte USA"]
[Date "2023.07.10"]
[Round "3"]
[White "Vettese, Nicholas"]
[Black "Mitkov, Nikola"]
[Result "1-0"]
[ECO "C45"]
[WhiteElo "2272"]
[BlackElo "2447"]
[PlyCount "115"]
[GameId "2129404707628167"]
[EventDate "2023.07.09"]
[EventType "swiss"]
[EventRounds "9"]
[EventCountry "USA"]
[SourceTitle "10 Days #729"]
[Source "ChessMix"]
[SourceDate "2023.07.20"]
[SourceVersion "1"]
[SourceVersionDate "2023.07.20"]
[SourceQuality "1"]
[TimeControl "5400+30"]

1. e4 {[%emt 0:00:03]} e5 {[%emt 0:03:44]} 2. Nf3 {[%emt 0:00:07]} Nc6 {[%emt 0:00:02]} 3. d4 {[%emt 0:00:06]} exd4 {[%emt 0:00:06]} 4. Nxd4 {[%emt 0:00:05]} Bc5 {[%emt 0:00:43]} 5. Nb3 {[%emt 0:00:07]} Bb6 {[%emt 0:00:06]} 6. Qe2 {[%emt 0:00:05]} Nge7 {[%emt 0:04:41]} 7. Nc3 {[%emt 0:00:19]} O-O {[%emt 0:00:06]} 8. Be3 {[%emt 0:00:05]} f5 {[%emt 0:00:03]} 9. O-O-O {[%emt 0:00:12]} f4 {[%emt 0:00:18]} 10. Bxb6 {[%emt 0:00:07]} axb6 {[%emt 0:00:03]} 11. Qd2 {[%emt 0:00:17]} d6 {[%emt 0:02:30]} 12. a3 {[%emt 0:03:53]} Ne5 {[%emt 0:17:17]} 13. f3 {[%emt 0:04:28]} Kh8 {[%emt 0:04:56]} 14. Nd4 {[%emt 0:09:38]} N7g6 {[%emt 0:02:36]} 15. Be2 {[%emt 0:10:17]} c6 {[%emt 0:07:40]} 16. Nf5 {[%emt 0:11:43]} Bxf5 {[%emt 0:21:33]} 17. exf5 {[%emt 0:00:06]} Rxf5 {[%emt 0:00:05]} 18. Qxd6 {[%emt 0:00:07]} Qxd6 {[%emt 0:01:25]} 19. Rxd6 {[%emt 0:00:06]} Nh4 {[%emt 0:01:07]} 20. Na4 {[%emt 0:06:36]} b5 {[%emt 0:06:25]} 21. Nc5 {[%emt 0:00:39]} Nxg2 {[%emt 0:15:12]} 22. Nxb7 {[%emt 0:01:24]} Rff8 {[%emt 0:03:53]} 23. Re6 {[%emt 0:03:57]} Rfe8 {[%emt 0:00:55]} 24. Rxe8+ {[%emt 0:00:40]} Rxe8 {[%emt 0:00:02]} 25. b3 {[%emt 0:04:27]} Nh4 {[%emt 0:02:28]} 26. Rf1 {[%emt 0:06:14]} g5 {[%emt 0:01:14]} 27. Nc5 {[%emt 0:09:42]} Kg7 {[%emt 0:02:10]} 28. Kb2 {[%emt 0:02:40]} Ra8 {[%emt 0:01:30]} 29. Nd3 {[%emt 0:04:24]} Nd7 {[%emt 0:01:23]} 30. Ra1 {[%emt 0:00:26]} Nb6 {[%emt 0:00:25]} 31. Nb4 {[%emt 0:01:27]} Re8 {[%emt 0:00:37]} 32. Bd3 {[%emt 0:00:39]} c5 {[%emt 0:00:28]} 33. Bxb5 {[%emt 0:00:06]} Rc8 {[%emt 0:00:23]} 34. Nc6 {[%emt 0:00:44]} Nxf3 {[%emt 0:00:06]} 35. h3 {[%emt 0:01:44]} Kf6 {[%emt 0:00:33]} 36. a4 {[%emt 0:00:13]} Nd5 {[%emt 0:00:44]} 37. a5 {[%emt 0:00:30]} Nc7 {[%emt 0:00:35]} 38. Be2 {[%emt 0:03:59]} Nh4 {[%emt 0:00:07]} 39. Bg4 {[%emt 0:01:29]} Ra8 {[%emt 0:00:22]} 40. c3 {[%emt 0:00:13]} Ra6 {[%emt 0:00:50]} 41. Nb8 {[%emt 0:00:04]} Rd6 {[%emt 0:00:37]} 42. a6 {[%emt 0:00:57]} Kg6 {[%emt 0:00:43]} 43. a7 {[%emt 0:00:18]} h5 {[%emt 0:00:14]} 44. Bd7 {[%emt 0:06:38]} f3 {[%emt 0:00:37]} 45. Bc6 {[%emt 0:03:01]} Rd2+ {[%emt 0:00:27]} 46. Ka3 {[%emt 0:00:29]} Rd8 {[%emt 0:00:47]} 47. b4 {[%emt 0:00:19]} cxb4+ {[%emt 0:00:26]} 48. cxb4 {[%emt 0:00:05]} f2 {[%emt 0:00:35]} 49. b5 {[%emt 0:03:43]} Rd3+ {[%emt 0:00:06]} 50. Kb4 {[%emt 0:00:05]} Rd4+ {[%emt 0:00:44]} 51. Ka5 {[%emt 0:00:07]} Rd2 {[%emt 0:00:05]} 52. Kb6 {[%emt 0:00:50]} Ra2 {[%emt 0:00:22]} 53. Rf1 {[%emt 0:00:50]} Nxb5 {[%emt 0:01:18]} 54. Bxb5 {[%emt 0:00:19]} g4 {[%emt 0:00:27]} 55. hxg4 {[%emt 0:00:39]} hxg4 {[%emt 0:00:03]} 56. Na6 {[%emt 0:01:27]} g3 {[%emt 0:00:07]} 57. a8=Q {[%emt 0:01:21]} g2 {[%emt 0:00:03]} 58. Qe4+ {[%emt 0:00:30]} 1-0

[Event "Charlotte Super Swiss"]
[Site "Charlotte USA"]
[Date "2023.07.11"]
[Round "4"]
[White "Zapata, Alonso"]
[Black "Vettese, Nicholas"]
[Result "1-0"]
[ECO "B88"]
[WhiteElo "2321"]
[BlackElo "2272"]
[PlyCount "69"]
[GameId "2129404707628192"]
[EventDate "2023.07.09"]
[EventType "swiss"]
[EventRounds "9"]
[EventCountry "USA"]
[SourceTitle "10 Days #729"]
[Source "ChessMix"]
[SourceDate "2023.07.20"]
[SourceVersion "1"]
[SourceVersionDate "2023.07.20"]
[SourceQuality "1"]
[TimeControl "5400+30"]

1. e4 {[%emt 0:00:42]} c5 {[%emt 0:00:14]} 2. Nf3 {[%emt 0:00:04]} d6 {[%emt 0:00:11]} 3. d4 {[%emt 0:00:13]} cxd4 {[%emt 0:00:07]} 4. Nxd4 {[%emt 0:00:04]} Nf6 {[%emt 0:00:08]} 5. Nc3 {[%emt 0:00:12]} a6 {[%emt 0:00:07]} 6. Bc4 {[%emt 0:01:39]} e6 {[%emt 0:01:09]} 7. O-O {[%emt 0:00:07]} Qc7 {[%emt 0:01:35]} 8. Bb3 {[%emt 0:00:21]} Nc6 {[%emt 0:01:31]} 9. Nxc6 {[%emt 0:03:23]} bxc6 {[%emt 0:01:31]} 10. f4 {[%emt 0:01:05]} d5 {[%emt 0:15:31]} 11. e5 {[%emt 0:00:08]} Nd7 {[%emt 0:00:15]} 12. Na4 {[%emt 0:00:24]} a5 {[%emt 0:08:46]} 13. Be3 {[%emt 0:03:57]} c5 {[%emt 0:05:39]} 14. c4 {[%emt 0:01:24]} d4 {[%emt 0:00:05]} 15. Bd2 {[%emt 0:03:03]} g6 {[%emt 0:10:20]} 16. Bc2 {[%emt 0:04:26]} Bb7 {[%emt 0:00:05]} 17. b3 {[%emt 0:02:38]} Bg7 {[%emt 0:04:19]} 18. Qg4 {[%emt 0:03:27]} h5 {[%emt 0:06:45]} 19. Qh3 {[%emt 0:01:12]} Bh6 {[%emt 0:07:07]} 20. Rae1 {[%emt 0:03:20]} O-O-O {[%emt 0:02:09]} 21. Be4 {[%emt 0:04:30]} Bxe4 {[%emt 0:00:05]} 22. Rxe4 {[%emt 0:00:10]} Rdg8 {[%emt 0:00:06]} 23. Qh4 {[%emt 0:01:40]} Qc6 {[%emt 0:04:07]} 24. Qe1 {[%emt 0:03:57]} g5 {[%emt 0:02:14]} 25. f5 {[%emt 0:08:34]} g4 {[%emt 0:00:05]} 26. fxe6 {[%emt 0:01:11]} fxe6 {[%emt 0:01:53]} 27. Bxh6 {[%emt 0:03:24]} Rxh6 {[%emt 0:00:05]} 28. Rf7 {[%emt 0:00:47]} Qc7 {[%emt 0:03:12]} 29. Ref4 {[%emt 0:01:12]} d3 {[%emt 0:01:29]} 30. Rxd7 {[%emt 0:00:37]} Kxd7 {[%emt 0:00:20]} 31. Rf7+ {[%emt 0:00:17]} Kc8 {[%emt 0:00:05]} 32. Rxc7+ {[%emt 0:00:13]} Kxc7 {[%emt 0:00:05]} 33. Qxa5+ {[%emt 0:00:09]} Kb8 {[%emt 0:00:36]} 34. Qb6+ {[%emt 0:00:39]} Ka8 {[%emt 0:00:06]} 35. Qc7 {[%emt 0:00:39]} 1-0

[Event "CAN-ch"]
[Site "Guelph CAN"]
[Date "2015.07.11"]
[Round "2.6"]
[White "Vettese, Nicholas"]
[Black "Cao, Jason"]
[Result "0-1"]
[ECO "B80"]
[WhiteElo "2316"]
[BlackElo "2439"]
[PlyCount "56"]
[GameId "2160767738660388"]
[EventDate "2015.07.10"]
[EventType "swiss"]
[EventRounds "9"]
[EventCountry "CAN"]
[TimeControl "40/5400+30:1800+30"]

1. e4 c5 2. Nf3 d6 3. d4 cxd4 4. Nxd4 Nf6 5. Nc3 a6 6. Be3 e6 7. f3 b5 8. a3 Bb7 9. Qd2 Nbd7 10. g4 Nb6 11. O-O-O Nfd7 12. Qf2 Rc8 13. Kb1 Rxc3 14. bxc3 Na4 15. Ne2 Qc7 16. Bd4 Ne5 17. Bxe5 dxe5 18. c4 bxc4 19. Qe3 Bc5 20. Qc1 O-O 21. Ka2 Rb8 22. Qa1 Qa5 23. Qxe5 Rc8 24. Rb1 Bc6 25. Rb8 Rxb8 26. Qxb8+ Bf8 27. Qf4 c3 28. Nd4 Qc5 0-1

[Event "CAN-ch"]
[Site "Guelph CAN"]
[Date "2015.07.12"]
[Round "4.5"]
[White "Vettese, Nicholas"]
[Black "Preotu, Razvan"]
[Result "0-1"]
[ECO "B80"]
[WhiteElo "2306"]
[BlackElo "2636"]
[PlyCount "86"]
[GameId "2160767738660410"]
[EventDate "2015.07.10"]
[EventType "swiss"]
[EventRounds "9"]
[EventCountry "CAN"]
[TimeControl "40/5400+30:1800+30"]

1. e4 c5 2. Nf3 d6 3. d4 cxd4 4. Nxd4 Nf6 5. Nc3 a6 6. Be3 e6 7. f3 b5 8. Qd2 b4 9. Nce2 e5 10. Nb3 Nc6 11. c4 a5 12. a4 Be6 13. Ng3 Nd7 14. Bd3 Nc5 15. Nc1 b3 16. Bxc5 dxc5 17. Nge2 Nb4 18. Nc3 Nxd3+ 19. Qxd3 Qd4 20. Nb5 Qxd3 21. Nxd3 O-O-O 22. Nxe5 Kb7 23. Rc1 g6 24. Ke2 Bh6 25. Nd3 Bxc1 26. Rxc1 Kc6 27. Rc3 f6 28. Nf4 Rhe8 29. Nxe6 Rxe6 30. Rxb3 f5 31. Na7+ Kd6 32. Rb5 fxe4 33. f4 e3 34. Rxa5 Ke7 35. Rxc5 Rd2+ 36. Ke1 Rxb2 37. g3 Ra6 38. Rc7+ Kd8 39. Nb5 Rxa4 40. Ra7 Rxc4 41. Ra8+ Ke7 42. Ra7+ Kf6 43. Ra6+ Kg7 0-1

[Event "CAN-ch"]
[Site "Guelph CAN"]
[Date "2015.07.12"]
[Round "5.10"]
[White "Shi, Diwen"]
[Black "Vettese, Nicholas"]
[Result "0-1"]
[ECO "B92"]
[WhiteElo "2214"]
[BlackElo "2316"]
[PlyCount "60"]
[GameId "2160767738660426"]
[EventDate "2015.07.10"]
[EventType "swiss"]
[EventRounds "9"]
[EventCountry "CAN"]
[TimeControl "40/5400+30:1800+30"]

1. e4 c5 2. Nf3 d6 3. d4 cxd4 4. Nxd4 Nf6 5. Nc3 a6 6. Be2 e5 7. Nb3 Be6 8. f4 exf4 9. Bxf4 Nc6 10. Qd2 Ne5 11. O-O-O Rc8 12. Kb1 b5 13. a3 Be7 14. Nd5 Nxe4 15. Qe3 Bxd5 16. Rxd5 Nf6 17. Rd2 Qc7 18. Nd4 O-O 19. Nf5 Rfe8 20. Qg3 Bf8 21. Bf3 Nc4 22. Rf2 Kh8 23. Rd1 Qc5 24. Nd4 a5 25. Qg5 d5 26. Re2 Rxe2 27. Bxe2 Nxb2 28. Kxb2 Ne4 29. Nb3 Qxa3+ 30. Kb1 Nc3# 0-1

[Event "CAN-ch"]
[Site "Guelph CAN"]
[Date "2015.07.13"]
[Round "6.9"]
[White "Vettese, Nicholas"]
[Black "Yam, Alex"]
[Result "0-1"]
[ECO "B01"]
[WhiteElo "2316"]
[BlackElo "2384"]
[PlyCount "46"]
[GameId "2160767738660436"]
[EventDate "2015.07.10"]
[EventType "swiss"]
[EventRounds "9"]
[EventCountry "CAN"]
[TimeControl "40/5400+30:1800+30"]

1. e4 d5 2. exd5 Qxd5 3. Nc3 Qd6 4. d4 Nf6 5. Nge2 c6 6. Bf4 Qb4 7. a3 Qb6 8. Rb1 Bf5 9. Ng3 Bg6 10. h4 h6 11. h5 Bh7 12. Bc4 e6 13. O-O Be7 14. Re1 O-O 15. Nce4 Nbd7 16. Bb3 Rfd8 17. c4 Nxe4 18. Nxe4 Bxe4 19. Rxe4 Nf6 20. Re3 Rxd4 21. Qf3 Bd6 22. Bxh6 Ng4 23. Bg5 Qc5 0-1